[Event "Titled Tuesday Blitz February 07 Late 2023"]
[White "So, Wesley"]
[Black "Naroditsky, Daniel"]
[WhiteFideId "5202213"]
[BlackFideId "2026961"]
[WhiteElo "2760"]
[BlackElo "2618"]
[Result "1-0"]
[Round "11"]
[TimeControl "180+2"]
[Date "2023.02.07"]
[WhiteClock "0:00:05"]
[BlackClock "0:00:03"]

1. e4 {[%clk 0:03:00]}  e5 {[%clk 0:03:00]} 2. Nf3 {[%clk 0:02:59]}  Nc6 {[%clk 0:03:01]} 3. Bc4 {[%clk 0:02:59]}  Nf6 {[%clk 0:03:01]} 4. d3 {[%clk 0:02:59]}  h6 {[%clk 0:03:01]} 5. O-O {[%clk 0:02:59]}  d6 {[%clk 0:02:58]} 6. c3 {[%clk 0:02:59]}  g5 {[%clk 0:02:56]} 7. Nbd2 {[%clk 0:02:54]}  g4 {[%clk 0:02:55]} 8. Ne1 {[%clk 0:02:53]}  h5 {[%clk 0:02:54]} 9. f4 {[%clk 0:02:51]}  Bh6 {[%clk 0:02:41]} 10. fxe5 {[%clk 0:02:37]}  Nxe5 {[%clk 0:02:39]} 11. d4 {[%clk 0:02:27]}  Nxc4 {[%clk 0:02:10]} 12. Nxc4 {[%clk 0:02:28]}  Bxc1 {[%clk 0:02:10]} 13. Qxc1 {[%clk 0:02:29]}  Nxe4 {[%clk 0:02:08]} 14. Qf4 {[%clk 0:02:26]}  Qe7 {[%clk 0:02:04]} 15. Nd3 {[%clk 0:02:15]}  d5 {[%clk 0:01:31]} 16. Rae1 {[%clk 0:02:03]}  Be6 {[%clk 0:01:29]} 17. Nd2 {[%clk 0:01:34]}  Nxd2 {[%clk 0:01:16]} 18. Qxd2 {[%clk 0:01:35]}  O-O-O {[%clk 0:01:17]} 19. Re5 {[%clk 0:01:23]}  h4 {[%clk 0:01:07]} 20. Qe2 {[%clk 0:01:19]}  g3 {[%clk 0:01:03]} 21. h3 {[%clk 0:01:09]}  Rh6 {[%clk 0:00:49]} 22. Qe3 {[%clk 0:01:02]}  Rf6 {[%clk 0:00:46]} 23. Re1 {[%clk 0:00:58]}  Re8 {[%clk 0:00:28]} 24. Qg5 {[%clk 0:00:53]}  Rh8 {[%clk 0:00:14]} 25. Rxd5 {[%clk 0:00:38]}  c6 {[%clk 0:00:13]} 26. Rf5 {[%clk 0:00:34]}  Rhh6 {[%clk 0:00:09]} 27. Nf4 {[%clk 0:00:27]}  Qd8 {[%clk 0:00:09]} 28. Rxf6 {[%clk 0:00:26]}  Qxf6 {[%clk 0:00:06]} 29. Qg8+ {[%clk 0:00:18]}  Kd7 {[%clk 0:00:04]} 30. Nd3 {[%clk 0:00:09]}  Kc7 {[%clk 0:00:03]} 31. Qf8 {[%clk 0:00:05]}  Qf5 {[%clk 0:00:02]} 32. Qxh6 {[%clk 0:00:05]}  Qxd3 {[%clk 0:00:02]} 33. Qxh4 {[%clk 0:00:05]}  Bxa2 {[%clk 0:00:03]} 34. Qf4+ {[%clk 0:00:05]}  Kb6 {[%clk 0:00:03]} 35. Qe3 {[%clk 0:00:05]}  Qc2 {[%clk 0:00:02]} 36. Qxg3 {[%clk 0:00:05]}  Qxb2 {[%clk 0:00:02]} 37. Qf2 {[%clk 0:00:06]}  Qxc3 {[%clk 0:00:03]} 38. d5+ {[%clk 0:00:03]}  c5 {[%clk 0:00:02]} 39. d6 {[%clk 0:00:02]}  Be6 {[%clk 0:00:02]} 40. Rd1 {[%clk 0:00:03]}  Qb3 {[%clk 0:00:01]} 41. Qf3 {[%clk 0:00:03]}  Qxf3 {[%clk 0:00:01]} 42. gxf3 {[%clk 0:00:03]}  Kc6 {[%clk 0:00:02]} 43. h4 {[%clk 0:00:04]}  c4 {[%clk 0:00:02]} 44. h5 {[%clk 0:00:04]}  Kd7 {[%clk 0:00:02]} 45. h6 {[%clk 0:00:05]}  Bf5 {[%clk 0:00:03]} 46. Kf2 {[%clk 0:00:03]}  c3 {[%clk 0:00:03]} 47. Ke3 {[%clk 0:00:04]}  b5 {[%clk 0:00:03]} 48. Kd4 {[%clk 0:00:03]}  b4 {[%clk 0:00:04]} 49. Kc4 {[%clk 0:00:04]}  a5 {[%clk 0:00:05]} 50. Rh1 {[%clk 0:00:03]}  Bh7 {[%clk 0:00:03]} 51. Kb3 {[%clk 0:00:03]}  Kxd6 {[%clk 0:00:03]} 52. Rg1 {[%clk 0:00:04]}  c2 {[%clk 0:00:03]} 53. Kb2 {[%clk 0:00:04]}  a4 {[%clk 0:00:04]} 54. Ra1 {[%clk 0:00:01]}  a3+ {[%clk 0:00:03]} 55. Kb3 {[%clk 0:00:02]}  Kc5 {[%clk 0:00:04]} 56. Rc1 {[%clk 0:00:02]}  Kd4 {[%clk 0:00:01]} 57. Rxc2 {[%clk 0:00:03]}  Ke3 {[%clk 0:00:01]} 58. Rh2 {[%clk 0:00:02]}  Kxf3 {[%clk 0:00:01]} 59. Kxb4 {[%clk 0:00:02]}  Kg3 {[%clk 0:00:02]} 60. Rh1 {[%clk 0:00:02]}  f5 {[%clk 0:00:02]} 61. Kxa3 {[%clk 0:00:02]}  f4 {[%clk 0:00:02]} 62. Rg1+ {[%clk 0:00:02]}  Kh2 {[%clk 0:00:01]} 63. Rg7 {[%clk 0:00:03]}  Bd3 {[%clk 0:00:02]} 64. Rd7 {[%clk 0:00:03]}  Bc2 {[%clk 0:00:02]} 65. Rc7 {[%clk 0:00:03]}  Bd3 {[%clk 0:00:02]} 66. Rf7 {[%clk 0:00:03]}  Kg3 {[%clk 0:00:02]} 67. Kb2 {[%clk 0:00:03]}  f3 {[%clk 0:00:03]} 68. Kc3 {[%clk 0:00:04]}  Bb1 {[%clk 0:00:01]} 69. Kd2 {[%clk 0:00:03]}  Kf2 {[%clk 0:00:01]} 70. h7 {[%clk 0:00:03]}  Bxh7 {[%clk 0:00:02]} 71. Rxh7 {[%clk 0:00:04]}  Kg2 {[%clk 0:00:02]} 72. Rg7+ {[%clk 0:00:04]}  Kf2 {[%clk 0:00:03]} 73. Rf7 {[%clk 0:00:04]}  Kg2 {[%clk 0:00:03]} 74. Ke3 {[%clk 0:00:04]}  f2 {[%clk 0:00:03]} 75. Rxf2+ {[%clk 0:00:05]} 1-0


[Site "https://www.chess.com"]

[Event "Titled Tuesday Blitz February 07 Late 2023"]
[White "Kollars, Dmitrij"]
[Black "Maksimovic, Bojan"]
[WhiteFideId "12909572"]
[BlackFideId "14408120"]
[WhiteElo "2607"]
[BlackElo "2486"]
[Result "0-1"]
[Round "11"]
[TimeControl "180+2"]
[Date "2023.02.07"]
[WhiteClock "0:00:03"]
[BlackClock "0:00:04"]

1. e4 {[%clk 0:03:00]}  g6 {[%clk 0:03:00]} 2. d4 {[%clk 0:03:00]}  Nf6 {[%clk 0:03:00]} 3. e5 {[%clk 0:02:59]}  Nh5 {[%clk 0:03:00]} 4. Nc3 {[%clk 0:02:54]}  d6 {[%clk 0:03:00]} 5. f4 {[%clk 0:02:48]}  Ng7 {[%clk 0:02:43]} 6. Be3 {[%clk 0:02:39]}  h5 {[%clk 0:02:37]} 7. Nf3 {[%clk 0:02:15]}  Bg4 {[%clk 0:02:33]} 8. h3 {[%clk 0:02:15]}  Bxf3 {[%clk 0:02:33]} 9. Qxf3 {[%clk 0:02:16]}  c6 {[%clk 0:02:33]} 10. g4 {[%clk 0:02:06]}  Nd7 {[%clk 0:01:55]} 11. O-O-O {[%clk 0:02:03]}  e6 {[%clk 0:01:50]} 12. Bd3 {[%clk 0:01:58]}  Qa5 {[%clk 0:01:47]} 13. Kb1 {[%clk 0:01:57]}  O-O-O {[%clk 0:01:47]} 14. Ne4 {[%clk 0:01:56]}  Qc7 {[%clk 0:01:34]} 15. Ng5 {[%clk 0:01:34]}  Nb6 {[%clk 0:01:34]} 16. c4 {[%clk 0:01:30]}  d5 {[%clk 0:00:48]} 17. c5 {[%clk 0:01:24]}  Nc4 {[%clk 0:00:45]} 18. Bc1 {[%clk 0:01:23]}  b6 {[%clk 0:00:45]} 19. b3 {[%clk 0:01:16]}  Na5 {[%clk 0:00:45]} 20. Bd2 {[%clk 0:00:58]}  Nb7 {[%clk 0:00:23]} 21. b4 {[%clk 0:00:57]}  a5 {[%clk 0:00:23]} 22. a3 {[%clk 0:00:48]}  b5 {[%clk 0:00:20]} 23. bxa5 {[%clk 0:00:39]}  Rd7 {[%clk 0:00:16]} 24. a6 {[%clk 0:00:35]}  Na5 {[%clk 0:00:16]} 25. a4 {[%clk 0:00:31]}  Nc4 {[%clk 0:00:15]} 26. axb5 {[%clk 0:00:30]}  cxb5 {[%clk 0:00:16]} 27. Bxc4 {[%clk 0:00:28]}  bxc4 {[%clk 0:00:16]} 28. Qa3 {[%clk 0:00:27]}  Qa7 {[%clk 0:00:12]} 29. Kc2 {[%clk 0:00:26]}  Ne8 {[%clk 0:00:12]} 30. Rb1 {[%clk 0:00:24]}  Nc7 {[%clk 0:00:12]} 31. f5 {[%clk 0:00:14]}  hxg4 {[%clk 0:00:10]} 32. fxe6 {[%clk 0:00:13]}  fxe6 {[%clk 0:00:10]} 33. hxg4 {[%clk 0:00:14]}  Rxh1 {[%clk 0:00:09]} 34. Rxh1 {[%clk 0:00:15]}  Qxa6 {[%clk 0:00:10]} 35. Qxa6+ {[%clk 0:00:14]}  Nxa6 {[%clk 0:00:11]} 36. Nxe6 {[%clk 0:00:13]}  Be7 {[%clk 0:00:11]} 37. c6 {[%clk 0:00:10]}  Rd8 {[%clk 0:00:06]} 38. Nxd8 {[%clk 0:00:10]}  Bxd8 {[%clk 0:00:06]} 39. Rh7 {[%clk 0:00:09]}  Nb8 {[%clk 0:00:06]} 40. Rg7 {[%clk 0:00:08]}  Nxc6 {[%clk 0:00:05]} 41. Bc3 {[%clk 0:00:09]}  g5 {[%clk 0:00:06]} 42. e6 {[%clk 0:00:09]}  Be7 {[%clk 0:00:06]} 43. Rg6 {[%clk 0:00:08]}  Kc7 {[%clk 0:00:06]} 44. Kd2 {[%clk 0:00:07]}  Kd6 {[%clk 0:00:07]} 45. Ke3 {[%clk 0:00:07]}  Kc7 {[%clk 0:00:03]} 46. Bb2 {[%clk 0:00:08]}  Kb6 {[%clk 0:00:02]} 47. Bc1 {[%clk 0:00:07]}  Kc7 {[%clk 0:00:03]} 48. Rg7 {[%clk 0:00:06]}  Kd6 {[%clk 0:00:02]} 49. Ba3+ {[%clk 0:00:05]}  Kxe6 {[%clk 0:00:03]} 50. Bxe7 {[%clk 0:00:06]}  Nxe7 {[%clk 0:00:03]} 51. Rxg5 {[%clk 0:00:07]}  Nc6 {[%clk 0:00:02]} 52. Rg6+ {[%clk 0:00:07]}  Kd7 {[%clk 0:00:03]} 53. g5 {[%clk 0:00:07]}  Ne7 {[%clk 0:00:03]} 54. Rf6 {[%clk 0:00:07]}  Ng8 {[%clk 0:00:04]} 55. Rf7+ {[%clk 0:00:06]}  Ke6 {[%clk 0:00:04]} 56. g6 {[%clk 0:00:07]}  Ne7 {[%clk 0:00:03]} 57. Rg7 {[%clk 0:00:06]}  Nf5+ {[%clk 0:00:03]} 58. Kf4 {[%clk 0:00:03]}  Nxg7 {[%clk 0:00:04]} 0-1


[Site "https://www.chess.com"]

[Event "Titled Tuesday Blitz February 07 Late 2023"]
[White "Dominguez Perez, Leinier"]
[Black "Borges Feria, Yasel"]
[WhiteFideId "3503240"]
[BlackFideId "3504921"]
[WhiteElo "2739"]
[BlackElo "2439"]
[Result "0-1"]
[Round "11"]
[TimeControl "180+2"]
[Date "2023.02.07"]
[WhiteClock "0:00:01"]
[BlackClock "0:00:08"]

1. d4 {[%clk 0:03:00]}  d5 {[%clk 0:02:53]} 2. Nf3 {[%clk 0:03:00]}  c6 {[%clk 0:02:53]} 3. e3 {[%clk 0:03:00]}  Nf6 {[%clk 0:02:52]} 4. Nbd2 {[%clk 0:03:00]}  Bg4 {[%clk 0:02:51]} 5. h3 {[%clk 0:03:00]}  Bxf3 {[%clk 0:02:50]} 6. Nxf3 {[%clk 0:03:00]}  e6 {[%clk 0:02:51]} 7. Bd3 {[%clk 0:03:00]}  Nbd7 {[%clk 0:02:51]} 8. O-O {[%clk 0:02:58]}  Bd6 {[%clk 0:02:52]} 9. c4 {[%clk 0:02:58]}  O-O {[%clk 0:02:50]} 10. Qc2 {[%clk 0:02:56]}  Re8 {[%clk 0:02:47]} 11. Rd1 {[%clk 0:02:55]}  Qe7 {[%clk 0:02:45]} 12. Bd2 {[%clk 0:02:43]}  Rac8 {[%clk 0:02:44]} 13. Be1 {[%clk 0:02:39]}  h6 {[%clk 0:02:32]} 14. a3 {[%clk 0:02:38]}  c5 {[%clk 0:02:29]} 15. dxc5 {[%clk 0:02:37]}  Nxc5 {[%clk 0:02:27]} 16. Bf1 {[%clk 0:02:37]}  Ncd7 {[%clk 0:02:17]} 17. Qb3 {[%clk 0:02:32]}  Nc5 {[%clk 0:01:35]} 18. Qa2 {[%clk 0:02:32]}  Nce4 {[%clk 0:01:33]} 19. Rac1 {[%clk 0:02:29]}  Red8 {[%clk 0:01:30]} 20. b4 {[%clk 0:02:14]}  dxc4 {[%clk 0:01:26]} 21. Bxc4 {[%clk 0:02:13]}  Bb8 {[%clk 0:01:20]} 22. Bf1 {[%clk 0:02:02]}  Ng5 {[%clk 0:01:16]} 23. Nxg5 {[%clk 0:01:53]}  hxg5 {[%clk 0:01:17]} 24. Rxd8+ {[%clk 0:01:48]}  Rxd8 {[%clk 0:01:17]} 25. Qc2 {[%clk 0:01:47]}  Be5 {[%clk 0:01:04]} 26. g3 {[%clk 0:01:36]}  g6 {[%clk 0:00:59]} 27. Bg2 {[%clk 0:01:36]}  b6 {[%clk 0:00:55]} 28. Bf3 {[%clk 0:01:35]}  Kg7 {[%clk 0:00:54]} 29. Kg2 {[%clk 0:01:33]}  Nd5 {[%clk 0:00:52]} 30. Rd1 {[%clk 0:01:30]}  Nf6 {[%clk 0:00:50]} 31. Rxd8 {[%clk 0:01:29]}  Qxd8 {[%clk 0:00:51]} 32. Bd2 {[%clk 0:01:24]}  Qc7 {[%clk 0:00:51]} 33. Qxc7 {[%clk 0:01:22]}  Bxc7 {[%clk 0:00:51]} 34. Bc3 {[%clk 0:01:23]}  e5 {[%clk 0:00:47]} 35. Bc6 {[%clk 0:01:08]}  Ng8 {[%clk 0:00:40]} 36. Kf3 {[%clk 0:01:02]}  f5 {[%clk 0:00:37]} 37. Ke2 {[%clk 0:00:59]}  Ne7 {[%clk 0:00:37]} 38. Bb7 {[%clk 0:00:55]}  Kf7 {[%clk 0:00:37]} 39. Kd3 {[%clk 0:00:54]}  e4+ {[%clk 0:00:34]} 40. Kc4 {[%clk 0:00:54]}  Ke6 {[%clk 0:00:30]} 41. Kb5 {[%clk 0:00:53]}  Nd5 {[%clk 0:00:28]} 42. Bd4 {[%clk 0:00:33]}  Bb8 {[%clk 0:00:26]} 43. Bxd5+ {[%clk 0:00:24]}  Kxd5 {[%clk 0:00:26]} 44. g4 {[%clk 0:00:24]}  f4 {[%clk 0:00:22]} 45. Bf6 {[%clk 0:00:22]}  f3 {[%clk 0:00:16]} 46. Bc3 {[%clk 0:00:22]}  Bg3 {[%clk 0:00:12]} 47. Be1 {[%clk 0:00:21]}  Bb8 {[%clk 0:00:12]} 48. a4 {[%clk 0:00:21]}  Bd6 {[%clk 0:00:04]} 49. Bc3 {[%clk 0:00:13]}  Bg3 {[%clk 0:00:03]} 50. Be1 {[%clk 0:00:14]}  Bd6 {[%clk 0:00:03]} 51. Ka6 {[%clk 0:00:14]}  Kc4 {[%clk 0:00:03]} 52. Kxa7 {[%clk 0:00:14]}  Kd3 {[%clk 0:00:04]} 53. Kxb6 {[%clk 0:00:15]}  Ke2 {[%clk 0:00:05]} 54. a5 {[%clk 0:00:12]}  Kxe1 {[%clk 0:00:05]} 55. a6 {[%clk 0:00:13]}  Kxf2 {[%clk 0:00:06]} 56. a7 {[%clk 0:00:13]}  Ke2 {[%clk 0:00:06]} 57. a8=Q {[%clk 0:00:13]}  f2 {[%clk 0:00:07]} 58. Qa2+ {[%clk 0:00:12]}  Kxe3 {[%clk 0:00:07]} 59. Qc4 {[%clk 0:00:12]}  Kf3 {[%clk 0:00:07]} 60. Kc6 {[%clk 0:00:10]}  Bf4 {[%clk 0:00:07]} 61. Kd5 {[%clk 0:00:10]}  e3 {[%clk 0:00:07]} 62. Qd3 {[%clk 0:00:06]}  Kg2 {[%clk 0:00:07]} 63. Qe2 {[%clk 0:00:04]}  Kg1 {[%clk 0:00:08]} 64. Ke4 {[%clk 0:00:01]}  f1=Q {[%clk 0:00:08]} 0-1


[Site "https://www.chess.com"]

[Event "Titled Tuesday Blitz February 07 Late 2023"]
[White "Yoo, Christopher Woojin"]
[Black "Oganian, Miran"]
[WhiteFideId "30909694"]
[BlackFideId "4122488"]
[WhiteElo "2607"]
[BlackElo "2439"]
[Result "1-0"]
[Round "11"]
[TimeControl "180+2"]
[Date "2023.02.07"]
[WhiteClock "0:00:28"]
[BlackClock "0:00:02"]

1. d4 {[%clk 0:03:00]}  e6 {[%clk 0:03:00]} 2. e4 {[%clk 0:03:00]}  d5 {[%clk 0:03:00]} 3. Nc3 {[%clk 0:02:59]}  Bb4 {[%clk 0:03:00]} 4. exd5 {[%clk 0:02:57]}  exd5 {[%clk 0:03:00]} 5. Qf3 {[%clk 0:02:56]}  Ne7 {[%clk 0:02:59]} 6. a3 {[%clk 0:02:52]}  Ba5 {[%clk 0:02:57]} 7. Bd3 {[%clk 0:02:32]}  Nbc6 {[%clk 0:02:56]} 8. Ne2 {[%clk 0:02:31]}  Be6 {[%clk 0:02:56]} 9. b4 {[%clk 0:02:25]}  Bb6 {[%clk 0:02:55]} 10. Be3 {[%clk 0:02:25]}  Qd7 {[%clk 0:02:55]} 11. h3 {[%clk 0:02:20]}  O-O-O {[%clk 0:02:55]} 12. O-O {[%clk 0:02:11]}  Bf5 {[%clk 0:02:54]} 13. Rad1 {[%clk 0:02:08]}  Bxd3 {[%clk 0:02:53]} 14. Rxd3 {[%clk 0:02:08]}  f6 {[%clk 0:02:52]} 15. Nf4 {[%clk 0:02:05]}  Kb8 {[%clk 0:02:48]} 16. Qg4 {[%clk 0:02:02]}  Qxg4 {[%clk 0:02:26]} 17. hxg4 {[%clk 0:02:00]}  g5 {[%clk 0:02:09]} 18. Nh5 {[%clk 0:01:58]}  Rhf8 {[%clk 0:02:08]} 19. f4 {[%clk 0:01:53]}  h6 {[%clk 0:02:05]} 20. Ng7 {[%clk 0:01:42]}  Rf7 {[%clk 0:02:00]} 21. Ne6 {[%clk 0:01:32]}  Rd6 {[%clk 0:02:00]} 22. Nc5 {[%clk 0:01:28]}  Bxc5 {[%clk 0:01:26]} 23. dxc5 {[%clk 0:01:26]}  Re6 {[%clk 0:01:22]} 24. fxg5 {[%clk 0:01:21]}  hxg5 {[%clk 0:01:23]} 25. Bf2 {[%clk 0:00:49]}  Ne5 {[%clk 0:01:21]} 26. Rh3 {[%clk 0:00:49]}  c6 {[%clk 0:00:55]} 27. Rh8+ {[%clk 0:00:49]}  Kc7 {[%clk 0:00:52]} 28. Bg3 {[%clk 0:00:49]}  Kd7 {[%clk 0:00:50]} 29. Rb8 {[%clk 0:00:48]}  Kc7 {[%clk 0:00:49]} 30. Ra8 {[%clk 0:00:49]}  f5 {[%clk 0:00:37]} 31. gxf5 {[%clk 0:00:43]}  Rxf5 {[%clk 0:00:37]} 32. Re1 {[%clk 0:00:43]}  Ng6 {[%clk 0:00:34]} 33. Ne2 {[%clk 0:00:40]}  Rf7 {[%clk 0:00:12]} 34. Nd4 {[%clk 0:00:39]}  Ree7 {[%clk 0:00:12]} 35. Nf3 {[%clk 0:00:37]}  Rf5 {[%clk 0:00:09]} 36. Rg8 {[%clk 0:00:35]}  Kd7 {[%clk 0:00:08]} 37. Nd4 {[%clk 0:00:35]}  Rf6 {[%clk 0:00:06]} 38. Ra8 {[%clk 0:00:35]}  Nf4 {[%clk 0:00:05]} 39. Rxa7 {[%clk 0:00:34]}  Kc8 {[%clk 0:00:04]} 40. Ra8+ {[%clk 0:00:34]}  Kd7 {[%clk 0:00:04]} 41. a4 {[%clk 0:00:31]}  g4 {[%clk 0:00:03]} 42. Bh4 {[%clk 0:00:30]}  g3 {[%clk 0:00:02]} 43. Bxf6 {[%clk 0:00:28]} 1-0


[Site "https://www.chess.com"]

[Event "Titled Tuesday Blitz February 07 Late 2023"]
[White "Chigaev, Maksim"]
[Black "Fernandez Guillen, Ernesto J."]
[WhiteFideId "4108116"]
[BlackFideId "3512428"]
[WhiteElo "2628"]
[BlackElo "2477"]
[Result "1/2-1/2"]
[Round "11"]
[TimeControl "180+2"]
[Date "2023.02.07"]
[WhiteClock "0:00:04"]
[BlackClock "0:00:04"]

1. e4 {[%clk 0:03:00]}  e5 {[%clk 0:02:51]} 2. Nf3 {[%clk 0:03:00]}  Nc6 {[%clk 0:02:50]} 3. d4 {[%clk 0:02:59]}  exd4 {[%clk 0:02:50]} 4. Nxd4 {[%clk 0:03:00]}  g6 {[%clk 0:02:45]} 5. Nc3 {[%clk 0:02:59]}  Bg7 {[%clk 0:02:45]} 6. Be3 {[%clk 0:03:00]}  Nge7 {[%clk 0:02:44]} 7. Bc4 {[%clk 0:02:54]}  O-O {[%clk 0:02:44]} 8. Qd2 {[%clk 0:02:53]}  Ne5 {[%clk 0:02:43]} 9. Be2 {[%clk 0:02:49]}  d5 {[%clk 0:02:43]} 10. Bh6 {[%clk 0:02:33]}  dxe4 {[%clk 0:02:25]} 11. Bxg7 {[%clk 0:02:25]}  Kxg7 {[%clk 0:02:26]} 12. O-O-O {[%clk 0:02:17]}  Qd6 {[%clk 0:01:17]} 13. Nxe4 {[%clk 0:02:13]}  Qb6 {[%clk 0:01:17]} 14. Qc3 {[%clk 0:01:51]}  f6 {[%clk 0:01:11]} 15. Qc5 {[%clk 0:01:31]}  Re8 {[%clk 0:01:01]} 16. Rhe1 {[%clk 0:01:06]}  Bf5 {[%clk 0:00:44]} 17. Nxf5+ {[%clk 0:01:01]}  gxf5 {[%clk 0:00:43]} 18. Qxb6 {[%clk 0:00:58]}  axb6 {[%clk 0:00:44]} 19. Nc3 {[%clk 0:00:59]}  f4 {[%clk 0:00:39]} 20. a3 {[%clk 0:00:50]}  c6 {[%clk 0:00:38]} 21. Bh5 {[%clk 0:00:40]}  Red8 {[%clk 0:00:26]} 22. Rxd8 {[%clk 0:00:40]}  Rxd8 {[%clk 0:00:27]} 23. g3 {[%clk 0:00:41]}  fxg3 {[%clk 0:00:23]} 24. hxg3 {[%clk 0:00:41]}  Nf5 {[%clk 0:00:19]} 25. f4 {[%clk 0:00:36]}  Ng6 {[%clk 0:00:18]} 26. g4 {[%clk 0:00:31]}  Nd6 {[%clk 0:00:18]} 27. f5 {[%clk 0:00:28]}  Ne5 {[%clk 0:00:17]} 28. Ne2 {[%clk 0:00:19]}  h6 {[%clk 0:00:15]} 29. Nf4 {[%clk 0:00:20]}  Rd7 {[%clk 0:00:14]} 30. Ne6+ {[%clk 0:00:19]}  Kg8 {[%clk 0:00:14]} 31. Rd1 {[%clk 0:00:20]}  Ne4 {[%clk 0:00:11]} 32. Rxd7 {[%clk 0:00:16]}  Nxd7 {[%clk 0:00:12]} 33. Nd8 {[%clk 0:00:16]}  Nd6 {[%clk 0:00:11]} 34. Kd2 {[%clk 0:00:16]}  Kf8 {[%clk 0:00:11]} 35. b3 {[%clk 0:00:16]}  Ke7 {[%clk 0:00:11]} 36. Ne6 {[%clk 0:00:16]}  Ne5 {[%clk 0:00:12]} 37. Ke3 {[%clk 0:00:15]}  b5 {[%clk 0:00:11]} 38. Nf4 {[%clk 0:00:13]}  Nc8 {[%clk 0:00:08]} 39. Kd4 {[%clk 0:00:12]}  Kd6 {[%clk 0:00:08]} 40. Ke4 {[%clk 0:00:07]}  b6 {[%clk 0:00:07]} 41. Ng6 {[%clk 0:00:05]}  Ne7 {[%clk 0:00:07]} 42. Nxe5 {[%clk 0:00:05]}  fxe5 {[%clk 0:00:07]} 43. f6 {[%clk 0:00:06]}  Nd5 {[%clk 0:00:07]} 44. f7 {[%clk 0:00:04]}  Ke7 {[%clk 0:00:06]} 45. Kxe5 {[%clk 0:00:04]}  Ne3 {[%clk 0:00:06]} 46. f8=Q+ {[%clk 0:00:03]}  Kxf8 {[%clk 0:00:06]} 47. Kd6 {[%clk 0:00:04]}  Nxc2 {[%clk 0:00:05]} 48. Kxc6 {[%clk 0:00:05]}  Nxa3 {[%clk 0:00:06]} 49. Kxb6 {[%clk 0:00:05]}  b4 {[%clk 0:00:03]} 50. Kc5 {[%clk 0:00:05]}  Ke7 {[%clk 0:00:03]} 51. Kxb4 {[%clk 0:00:05]}  Nc2+ {[%clk 0:00:04]} 52. Kc5 {[%clk 0:00:06]}  Ne3 {[%clk 0:00:05]} 53. b4 {[%clk 0:00:06]}  Kd7 {[%clk 0:00:05]} 54. b5 {[%clk 0:00:06]}  Kc7 {[%clk 0:00:05]} 55. b6+ {[%clk 0:00:07]}  Kb7 {[%clk 0:00:05]} 56. Kb5 {[%clk 0:00:05]}  Nd5 {[%clk 0:00:05]} 57. g5 {[%clk 0:00:06]}  Nc3+ {[%clk 0:00:03]} 58. Kc4 {[%clk 0:00:04]}  hxg5 {[%clk 0:00:03]} 59. Kxc3 {[%clk 0:00:02]}  Kxb6 {[%clk 0:00:04]} 60. Kd3 {[%clk 0:00:03]}  g4 {[%clk 0:00:04]} 61. Bxg4 {[%clk 0:00:04]} 1/2-1/2


[Site "https://www.chess.com"]

[Event "Titled Tuesday Blitz February 07 Late 2023"]
[White "Goroshkov, Maksym"]
[Black "Gadimbayli, Abdulla"]
[WhiteFideId "14142716"]
[BlackFideId "13404938"]
[WhiteElo "2287"]
[BlackElo "2500"]
[Result "0-1"]
[Round "11"]
[TimeControl "180+2"]
[Date "2023.02.07"]
[WhiteClock "0:00:16"]
[BlackClock "0:00:26"]

1. e4 {[%clk 0:02:59]}  e5 {[%clk 0:02:59]} 2. d4 {[%clk 0:02:59]}  exd4 {[%clk 0:02:59]} 3. c3 {[%clk 0:03:00]}  d5 {[%clk 0:02:58]} 4. exd5 {[%clk 0:03:00]}  Qxd5 {[%clk 0:02:59]} 5. cxd4 {[%clk 0:03:00]}  Nc6 {[%clk 0:02:58]} 6. Nf3 {[%clk 0:03:01]}  Bg4 {[%clk 0:02:57]} 7. Be2 {[%clk 0:03:01]}  Bb4+ {[%clk 0:02:57]} 8. Nc3 {[%clk 0:03:00]}  Nf6 {[%clk 0:02:58]} 9. O-O {[%clk 0:03:00]}  Bxc3 {[%clk 0:02:58]} 10. bxc3 {[%clk 0:03:00]}  O-O {[%clk 0:02:59]} 11. h3 {[%clk 0:03:01]}  Bh5 {[%clk 0:02:59]} 12. c4 {[%clk 0:03:00]}  Qd6 {[%clk 0:02:56]} 13. d5 {[%clk 0:02:58]}  Ne5 {[%clk 0:02:53]} 14. Bb2 {[%clk 0:02:56]}  Bxf3 {[%clk 0:02:49]} 15. Bxf3 {[%clk 0:02:50]}  Nxc4 {[%clk 0:02:48]} 16. Bc3 {[%clk 0:02:50]}  Ne5 {[%clk 0:02:48]} 17. Bxe5 {[%clk 0:02:45]}  Qxe5 {[%clk 0:02:49]} 18. Re1 {[%clk 0:02:46]}  Qd6 {[%clk 0:02:49]} 19. Qb3 {[%clk 0:02:46]}  Rab8 {[%clk 0:02:28]} 20. Rac1 {[%clk 0:02:43]}  Rfd8 {[%clk 0:02:28]} 21. Qc4 {[%clk 0:02:34]}  Rd7 {[%clk 0:02:08]} 22. Qa4 {[%clk 0:02:29]}  a6 {[%clk 0:02:03]} 23. Qb3 {[%clk 0:02:27]}  h6 {[%clk 0:02:01]} 24. Re3 {[%clk 0:02:17]}  Re7 {[%clk 0:02:01]} 25. Rxe7 {[%clk 0:02:08]}  Qxe7 {[%clk 0:02:02]} 26. Qc4 {[%clk 0:02:08]}  Ne8 {[%clk 0:02:02]} 27. Qc3 {[%clk 0:02:01]}  Rd8 {[%clk 0:02:00]} 28. Qb3 {[%clk 0:02:00]}  Nd6 {[%clk 0:01:59]} 29. Qc3 {[%clk 0:01:58]}  Nb5 {[%clk 0:01:59]} 30. Qc4 {[%clk 0:01:58]}  Qa3 {[%clk 0:01:51]} 31. Rc2 {[%clk 0:01:58]}  Qd6 {[%clk 0:01:44]} 32. Rc1 {[%clk 0:01:55]}  Qa3 {[%clk 0:01:37]} 33. Rc2 {[%clk 0:01:55]}  Rd7 {[%clk 0:01:36]} 34. Re2 {[%clk 0:01:52]}  Re7 {[%clk 0:01:31]} 35. Rxe7 {[%clk 0:01:28]}  Qxe7 {[%clk 0:01:32]} 36. a4 {[%clk 0:01:29]}  Nd6 {[%clk 0:01:28]} 37. Qc3 {[%clk 0:01:29]}  Kf8 {[%clk 0:01:22]} 38. g3 {[%clk 0:01:22]}  f5 {[%clk 0:01:11]} 39. h4 {[%clk 0:01:19]}  Ke8 {[%clk 0:01:10]} 40. Qb4 {[%clk 0:01:12]}  Kd8 {[%clk 0:01:08]} 41. Qc3 {[%clk 0:01:05]}  Kc8 {[%clk 0:01:06]} 42. Kg2 {[%clk 0:01:00]}  Kb8 {[%clk 0:01:05]} 43. Qd4 {[%clk 0:00:57]}  a5 {[%clk 0:00:58]} 44. Qc5 {[%clk 0:00:55]}  b6 {[%clk 0:00:59]} 45. Qc3 {[%clk 0:00:52]}  g5 {[%clk 0:00:56]} 46. Qh8+ {[%clk 0:00:51]}  Kb7 {[%clk 0:00:55]} 47. Qxh6 {[%clk 0:00:46]}  g4 {[%clk 0:00:55]} 48. Bd1 {[%clk 0:00:43]}  Qe4+ {[%clk 0:00:55]} 49. Kh2 {[%clk 0:00:42]}  Qd4 {[%clk 0:00:55]} 50. Qf4 {[%clk 0:00:37]}  Qxd1 {[%clk 0:00:53]} 51. h5 {[%clk 0:00:38]}  Ne4 {[%clk 0:00:33]} 52. d6 {[%clk 0:00:29]}  Nd2 {[%clk 0:00:26]} 53. d7 {[%clk 0:00:15]}  Nf3+ {[%clk 0:00:25]} 54. Qxf3+ {[%clk 0:00:16]}  gxf3 {[%clk 0:00:26]} 0-1


[Site "https://www.chess.com"]